[Event "Early-Titled-Tuesday-Blitz-February-27-2024"]
[Site "Chess.com"]
[Date "2024.02.27"]
[Round "6"]
[White "VinzentSpitzl"]
[Black "UK_23"]
[Result "0-1"]
[WhiteElo "2517"]
[BlackElo "2366"]
[TimeControl "180+1"]
[EndTime "9:05:28 PST"]
[Termination "UK_23 won on time"]

1. e4 {[%clk 0:03:00.9]} 1... e5 {[%clk 0:02:58.3]} 2. Nf3 {[%clk 0:03:00.8]}
2... Nf6 {[%clk 0:02:58.6]} 3. Nxe5 {[%clk 0:02:56.9]} 3... Nxe4 {[%clk
0:02:59]} 4. Qe2 {[%clk 0:02:50.4]} 4... Qe7 {[%clk 0:02:59]} 5. Qxe4 {[%clk
0:02:50.5]} 5... d6 {[%clk 0:02:59.7]} 6. d4 {[%clk 0:02:50.4]} 6... dxe5 {[%clk
0:03:00]} 7. dxe5 {[%clk 0:02:50.6]} 7... Nc6 {[%clk 0:03:00.5]} 8. Nc3 {[%clk
0:02:49.6]} 8... Qxe5 {[%clk 0:02:59.3]} 9. Bf4 {[%clk 0:02:44.4]} 9... Qxe4+
{[%clk 0:02:56.8]} 10. Nxe4 {[%clk 0:02:45.3]} 10... Bf5 {[%clk 0:02:40.4]} 11.
O-O-O {[%clk 0:02:11.3]} 11... Bxe4 {[%clk 0:02:34.4]} 12. Re1 {[%clk
0:02:11.4]} 12... O-O-O {[%clk 0:02:23.1]} 13. Rxe4 {[%clk 0:02:10.9]} 13... Bd6
{[%clk 0:02:23.8]} 14. Be3 {[%clk 0:01:44.5]} 14... f5 {[%clk 0:02:18.8]} 15.
Ra4 {[%clk 0:01:41.8]} 15... a6 {[%clk 0:02:18]} 16. Be2 {[%clk 0:01:40.1]}
16... Rhe8 {[%clk 0:02:12]} 17. Re1 {[%clk 0:01:31.1]} 17... g6 {[%clk
0:02:10.5]} 18. h4 {[%clk 0:01:29]} 18... Rd7 {[%clk 0:02:00.8]} 19. h5 {[%clk
0:01:10.3]} 19... Rde7 {[%clk 0:02:00.5]} 20. hxg6 {[%clk 0:01:08.6]} 20... hxg6
{[%clk 0:02:01.4]} 21. Kd2 {[%clk 0:01:04]} 21... Ne5 {[%clk 0:01:44.8]} 22. Bg5
{[%clk 0:00:56.6]} 22... Re6 {[%clk 0:01:42.6]} 23. Rh4 {[%clk 0:00:38.9]} 23...
Ng4 {[%clk 0:01:35.7]} 24. f3 {[%clk 0:00:33.3]} 24... Bg3 {[%clk 0:01:22.7]}
25. Rhh1 {[%clk 0:00:27.2]} 25... Bxe1+ {[%clk 0:01:21.9]} 26. Rxe1 {[%clk
0:00:28.1]} 26... Ne3 {[%clk 0:01:18.6]} 27. Bd3 {[%clk 0:00:14.4]} 27... Nd5
{[%clk 0:01:11.2]} 28. Rh1 {[%clk 0:00:13]} 28... Nb4 {[%clk 0:01:02.7]} 29. Bc4
{[%clk 0:00:13.2]} 29... Rd6+ {[%clk 0:00:55.2]} 30. Kc3 {[%clk 0:00:13.4]}
30... Nd5+ {[%clk 0:00:54.6]} 31. Kb3 {[%clk 0:00:13.7]} 31... b5 {[%clk
0:00:53.4]} 32. Bd3 {[%clk 0:00:12.6]} 32... c5 {[%clk 0:00:52.1]} 33. Ka3
{[%clk 0:00:10.2]} 33... c4 {[%clk 0:00:49.7]} 34. Bf1 {[%clk 0:00:10.4]} 34...
a5 {[%clk 0:00:44.9]} 35. c3 {[%clk 0:00:08.9]} 35... Re1 {[%clk 0:00:41.1]} 36.
Rh8+ {[%clk 0:00:08]} 36... Kd7 {[%clk 0:00:41.4]} 37. Rh7+ {[%clk 0:00:05.2]}
37... Kc6 {[%clk 0:00:41.5]} 38. Rh1 {[%clk 0:00:05.8]} 38... Ne3 {[%clk
0:00:38.3]} 39. Bxe3 {[%clk 0:00:05.3]} 39... Rxe3 {[%clk 0:00:39.2]} 40. f4
{[%clk 0:00:05.7]} 40... Re1 {[%clk 0:00:38.8]} 41. g3 {[%clk 0:00:05.9]} 41...
Rdd1 {[%clk 0:00:38.7]} 42. Bg2+ {[%clk 0:00:06]} 42... Kc5 {[%clk 0:00:38.4]}
43. Rh8 {[%clk 0:00:05.9]} 43... Rd2 {[%clk 0:00:34.5]} 44. Rc8+ {[%clk
0:00:05.6]} 44... Kb6 {[%clk 0:00:32.6]} 45. Rc6+ {[%clk 0:00:05.8]} 45... Ka7
{[%clk 0:00:32.9]} 46. Rc7+ {[%clk 0:00:06.2]} 46... Kb8 {[%clk 0:00:32.7]} 47.
Rb7+ {[%clk 0:00:06.1]} 47... Kc8 {[%clk 0:00:32.9]} 48. Bc6 {[%clk 0:00:06.7]}
48... Rd6 {[%clk 0:00:29.6]} 49. Bg2 {[%clk 0:00:05.4]} 49... Re2 {[%clk
0:00:28.2]} 50. Bf3 {[%clk 0:00:04.5]} 50... Re3 {[%clk 0:00:26]} 51. Bh1 {[%clk
0:00:04.7]} 51... b4+ {[%clk 0:00:26.5]} 52. Ka4 {[%clk 0:00:04.4]} 52... bxc3
{[%clk 0:00:27]} 53. bxc3 {[%clk 0:00:04.8]} 53... Rxc3 {[%clk 0:00:26.8]} 54.
Kb5 {[%clk 0:00:05]} 54... Rc1 {[%clk 0:00:22.5]} 55. Kc5 {[%clk 0:00:04.4]}
55... Rxh1 {[%clk 0:00:20]} 0-1

[Event "Early-Titled-Tuesday-Blitz-February-27-2024"]
[Site "Chess.com"]
[Date "2024.02.27"]
[Round "6"]
[White "chesstrainer2042"]
[Black "BardArtem"]
[Result "1-0"]
[WhiteElo "2571"]
[BlackElo "2746"]
[TimeControl "180+1"]
[EndTime "9:05:31 PST"]
[Termination "chesstrainer2042 won on time"]

1. d4 {[%clk 0:03:00.9]} 1... Nf6 {[%clk 0:02:57.5]} 2. Nf3 {[%clk 0:03:01.1]}
2... b6 {[%clk 0:02:55.1]} 3. c4 {[%clk 0:03:00.9]} 3... Bb7 {[%clk 0:02:52.2]}
4. Nc3 {[%clk 0:03:01.4]} 4... g6 {[%clk 0:02:50.9]} 5. Qc2 {[%clk 0:03:00.8]}
5... d5 {[%clk 0:02:49.7]} 6. cxd5 {[%clk 0:02:59]} 6... Nxd5 {[%clk 0:02:50.6]}
7. e4 {[%clk 0:02:59.6]} 7... Nxc3 {[%clk 0:02:50]} 8. bxc3 {[%clk 0:02:59.8]}
8... Bg7 {[%clk 0:02:50.9]} 9. h4 {[%clk 0:02:58.2]} 9... h6 {[%clk 0:02:47.3]}
10. Bc4 {[%clk 0:02:55.8]} 10... e6 {[%clk 0:02:39.4]} 11. Ba3 {[%clk
0:02:46.2]} 11... Nd7 {[%clk 0:02:38.2]} 12. Rd1 {[%clk 0:02:45.4]} 12... Nf6
{[%clk 0:02:33.7]} 13. Bd3 {[%clk 0:02:42.8]} 13... Bf8 {[%clk 0:02:21.8]} 14.
Bb2 {[%clk 0:02:32.8]} 14... Be7 {[%clk 0:02:16.2]} 15. c4 {[%clk 0:02:30.2]}
15... O-O {[%clk 0:02:14.6]} 16. Kf1 {[%clk 0:02:24.4]} 16... Nh5 {[%clk
0:02:08]} 17. Qc1 {[%clk 0:02:20.3]} 17... Kh7 {[%clk 0:02:02.3]} 18. Ne5 {[%clk
0:02:14.4]} 18... Bd6 {[%clk 0:01:57.1]} 19. d5 {[%clk 0:02:06.6]} 19... Qe8
{[%clk 0:01:37.6]} 20. Ng4 {[%clk 0:02:00.3]} 20... e5 {[%clk 0:01:20.4]} 21.
Qxh6+ {[%clk 0:01:58.6]} 21... Kg8 {[%clk 0:01:20.6]} 22. g3 {[%clk 0:01:21.6]}
22... Qe7 {[%clk 0:01:09]} 23. Bc1 {[%clk 0:01:12.2]} 23... Rfe8 {[%clk
0:00:49.8]} 24. Bc2 {[%clk 0:01:02]} 24... Qf8 {[%clk 0:00:43.3]} 25. Ba4 {[%clk
0:01:01.9]} 25... Qxh6 {[%clk 0:00:34.9]} 26. Nxh6+ {[%clk 0:01:01.2]} 26... Kg7
{[%clk 0:00:31.9]} 27. Bxe8 {[%clk 0:01:01.7]} 27... Rxe8 {[%clk 0:00:32.7]} 28.
Kg2 {[%clk 0:01:00.5]} 28... Bc8 {[%clk 0:00:29.6]} 29. f3 {[%clk 0:00:57.9]}
29... f5 {[%clk 0:00:21.7]} 30. exf5 {[%clk 0:00:48.5]} 30... gxf5 {[%clk
0:00:22.6]} 31. g4 {[%clk 0:00:49.2]} 31... fxg4 {[%clk 0:00:22.3]} 32. fxg4
{[%clk 0:00:49.1]} 32... Nf4+ {[%clk 0:00:22.7]} 33. Bxf4 {[%clk 0:00:48.2]}
33... exf4 {[%clk 0:00:23.6]} 34. Nf5+ {[%clk 0:00:46.1]} 34... Bxf5 {[%clk
0:00:23.5]} 35. gxf5 {[%clk 0:00:46.7]} 35... Re2+ {[%clk 0:00:24]} 36. Kf3
{[%clk 0:00:46.8]} 36... Re3+ {[%clk 0:00:22.8]} 37. Kg4 {[%clk 0:00:43.5]}
37... Rg3+ {[%clk 0:00:21.9]} 38. Kh5 {[%clk 0:00:43.6]} 38... Kf6 {[%clk
0:00:18.8]} 39. Rhg1 {[%clk 0:00:41.1]} 39... Bc5 {[%clk 0:00:19]} 40. Rge1
{[%clk 0:00:25.2]} 40... Kxf5 {[%clk 0:00:18.1]} 41. Re8 {[%clk 0:00:23.9]}
41... f3 {[%clk 0:00:12.5]} 42. Rf1 {[%clk 0:00:22.9]} 42... f2 {[%clk
0:00:11.1]} 43. Rxf2+ {[%clk 0:00:22.8]} 43... Bxf2 {[%clk 0:00:12]} 44. Rf8+
{[%clk 0:00:23.4]} 44... Ke5 {[%clk 0:00:11]} 45. Rxf2 {[%clk 0:00:23.7]} 45...
a6 {[%clk 0:00:03.6]} 46. Rf7 {[%clk 0:00:23.2]} 46... Kd6 {[%clk 0:00:04.2]}
47. Rf6+ {[%clk 0:00:22.3]} 47... Kd7 {[%clk 0:00:01.9]} 48. Rg6 {[%clk
0:00:20.6]} 48... Ra3 {[%clk 0:00:02.5]} 49. Rg4 {[%clk 0:00:15.9]} 49... Rxa2
{[%clk 0:00:02.5]} 50. Kg6 {[%clk 0:00:16.5]} 1-0

[Event "Early-Titled-Tuesday-Blitz-February-27-2024"]
[Site "Chess.com"]
[Date "2024.02.27"]
[Round "6"]
[White "rhwr"]
[Black "Alexchess1984"]
[Result "1-0"]
[WhiteElo "2293"]
[BlackElo "2712"]
[TimeControl "180+1"]
[EndTime "9:05:31 PST"]
[Termination "rhwr won by resignation"]

1. e4 {[%clk 0:02:59.7]} 1... c5 {[%clk 0:02:59.7]} 2. Nf3 {[%clk 0:03:00]} 2...
g6 {[%clk 0:02:59.9]} 3. d4 {[%clk 0:03:00.2]} 3... cxd4 {[%clk 0:03:00.1]} 4.
Nxd4 {[%clk 0:03:00.6]} 4... Bg7 {[%clk 0:02:59.9]} 5. c4 {[%clk 0:03:01.1]}
5... Nc6 {[%clk 0:02:59.9]} 6. Be3 {[%clk 0:03:01.1]} 6... d6 {[%clk 0:03:00.1]}
7. Nc3 {[%clk 0:03:01.5]} 7... Nf6 {[%clk 0:03:00.4]} 8. Be2 {[%clk 0:03:01.3]}
8... O-O {[%clk 0:03:00]} 9. O-O {[%clk 0:03:01.5]} 9... Bd7 {[%clk 0:03:00.1]}
10. f3 {[%clk 0:02:59.1]} 10... Nxd4 {[%clk 0:02:49.7]} 11. Bxd4 {[%clk
0:02:58.9]} 11... a5 {[%clk 0:02:50]} 12. Qd2 {[%clk 0:02:54.4]} 12... Bc6
{[%clk 0:02:47.7]} 13. a3 {[%clk 0:02:52.9]} 13... a4 {[%clk 0:02:44.9]} 14. Qe3
{[%clk 0:02:43.1]} 14... Nd7 {[%clk 0:02:05.7]} 15. Bxg7 {[%clk 0:02:42.1]}
15... Kxg7 {[%clk 0:02:06.6]} 16. Rad1 {[%clk 0:02:37.9]} 16... Qa5 {[%clk
0:01:53.8]} 17. f4 {[%clk 0:02:36.9]} 17... Qc5 {[%clk 0:01:52.2]} 18. Qxc5
{[%clk 0:02:27.2]} 18... Nxc5 {[%clk 0:01:53.1]} 19. Bf3 {[%clk 0:02:26.8]}
19... Rad8 {[%clk 0:01:38.4]} 20. Rfe1 {[%clk 0:02:25.2]} 20... e5 {[%clk
0:01:35.1]} 21. g3 {[%clk 0:02:17.1]} 21... Nb3 {[%clk 0:01:28.7]} 22. Bg2
{[%clk 0:02:05.4]} 22... Na5 {[%clk 0:01:06.2]} 23. Bf1 {[%clk 0:02:01.7]} 23...
Nb3 {[%clk 0:01:06.2]} 24. Nd5 {[%clk 0:01:56.8]} 24... Bxd5 {[%clk 0:00:51]}
25. Rxd5 {[%clk 0:01:54.8]} 25... Nd4 {[%clk 0:00:50.7]} 26. Kf2 {[%clk
0:01:54.2]} 26... f6 {[%clk 0:00:47.1]} 27. Rc1 {[%clk 0:01:51.3]} 27... b6
{[%clk 0:00:45.8]} 28. Ke3 {[%clk 0:01:43.4]} 28... Kf7 {[%clk 0:00:44.5]} 29.
Bd3 {[%clk 0:01:36.1]} 29... Ke7 {[%clk 0:00:44.3]} 30. Bc2 {[%clk 0:01:36]}
30... Ra8 {[%clk 0:00:37.1]} 31. Bd1 {[%clk 0:01:35.7]} 31... Rfc8 {[%clk
0:00:36.1]} 32. Rc3 {[%clk 0:01:31.4]} 32... Rc5 {[%clk 0:00:30.7]} 33. h4
{[%clk 0:01:25.7]} 33... Ne6 {[%clk 0:00:11.8]} 34. h5 {[%clk 0:01:15.4]} 34...
Nc7 {[%clk 0:00:10.7]} 35. Rd2 {[%clk 0:01:14.4]} 35... Ne6 {[%clk 0:00:10.7]}
36. Rh2 {[%clk 0:01:13.8]} 36... g5 {[%clk 0:00:09.9]} 37. f5 {[%clk 0:01:12.2]}
37... Nd4 {[%clk 0:00:09.6]} 38. Rd2 {[%clk 0:01:05.6]} 38... Rac8 {[%clk
0:00:09.5]} 39. Bxa4 {[%clk 0:01:02.8]} 39... Rxc4 {[%clk 0:00:08.8]} 40. Rdd3
{[%clk 0:01:01.3]} 40... b5 {[%clk 0:00:03.9]} 41. Bd1 {[%clk 0:00:59.1]} 41...
Rxc3 {[%clk 0:00:02.7]} 42. Rxc3 {[%clk 0:00:58.5]} 42... Nc6 {[%clk 0:00:03.6]}
43. Be2 {[%clk 0:00:56.6]} 43... Na7 {[%clk 0:00:02.1]} 44. Rxc8 {[%clk
0:00:56.3]} 44... Nxc8 {[%clk 0:00:03]} 45. Bxb5 {[%clk 0:00:57]} 45... Nb6
{[%clk 0:00:03.7]} 46. b3 {[%clk 0:00:56.5]} 46... d5 {[%clk 0:00:03.7]} 47. a4
{[%clk 0:00:56.6]} 47... dxe4 {[%clk 0:00:03.1]} 48. Kxe4 {[%clk 0:00:56.6]}
48... Kd6 {[%clk 0:00:03.1]} 49. Bc4 {[%clk 0:00:54.4]} 49... Nd7 {[%clk
0:00:02.1]} 50. b4 {[%clk 0:00:52.9]} 50... Nb6 {[%clk 0:00:01.9]} 51. Bb3
{[%clk 0:00:53.7]} 51... Nd7 {[%clk 0:00:01.5]} 52. a5 {[%clk 0:00:54]} 52...
Nb8 {[%clk 0:00:01.7]} 53. Ba4 {[%clk 0:00:53.7]} 53... Na6 {[%clk 0:00:01.7]}
54. Bb5 {[%clk 0:00:48.8]} 54... Nxb4 {[%clk 0:00:01.8]} 55. a6 {[%clk
0:00:48.7]} 55... Kc5 {[%clk 0:00:02.4]} 56. a7 {[%clk 0:00:48.8]} 56... Kxb5
{[%clk 0:00:02.1]} 57. a8=Q {[%clk 0:00:48.3]} 57... Na6 {[%clk 0:00:02.1]} 58.
Qb7+ {[%clk 0:00:46.5]} 58... Ka5 {[%clk 0:00:02.4]} 59. Qxh7 {[%clk 0:00:46.3]}
59... Nc5+ {[%clk 0:00:02.5]} 60. Kd5 {[%clk 0:00:46.5]} 60... Nb3 {[%clk
0:00:03.3]} 61. Kc4 {[%clk 0:00:46.6]} 61... Ka4 {[%clk 0:00:02.8]} 62. Qa7+
{[%clk 0:00:46.7]} 62... Na5+ {[%clk 0:00:03.7]} 63. Kc3 {[%clk 0:00:45.3]} 1-0

[Event "Early-Titled-Tuesday-Blitz-February-27-2024"]
[Site "Chess.com"]
[Date "2024.02.27"]
[Round "6"]
[White "ValentinDragnev"]
[Black "jamengrand"]
[Result "0-1"]
[WhiteElo "2730"]
[BlackElo "2414"]
[TimeControl "180+1"]
[EndTime "9:05:34 PST"]
[Termination "jamengrand won on time"]

1. d4 {[%clk 0:03:00.4]} 1... d5 {[%clk 0:03:00]} 2. Nf3 {[%clk 0:03:01]} 2...
Nf6 {[%clk 0:02:59.6]} 3. Bf4 {[%clk 0:03:01.7]} 3... g6 {[%clk 0:02:58.7]} 4.
e3 {[%clk 0:03:02.4]} 4... Bg7 {[%clk 0:02:59]} 5. h3 {[%clk 0:03:02.8]} 5...
O-O {[%clk 0:02:58.9]} 6. Be2 {[%clk 0:03:03.4]} 6... c5 {[%clk 0:02:59.3]} 7.
O-O {[%clk 0:03:03.7]} 7... Nc6 {[%clk 0:02:59.7]} 8. c3 {[%clk 0:03:04.1]} 8...
Nd7 {[%clk 0:03:00.1]} 9. Nbd2 {[%clk 0:02:59.6]} 9... e5 {[%clk 0:03:00.2]} 10.
dxe5 {[%clk 0:02:57.8]} 10... Ndxe5 {[%clk 0:03:01.1]} 11. Nxe5 {[%clk
0:02:55.7]} 11... Bxe5 {[%clk 0:03:01]} 12. Bxe5 {[%clk 0:02:51.1]} 12... Nxe5
{[%clk 0:03:01.9]} 13. Nf3 {[%clk 0:02:52]} 13... Nc6 {[%clk 0:03:02.2]} 14. Qb3
{[%clk 0:02:50.2]} 14... b6 {[%clk 0:03:00.7]} 15. Rfd1 {[%clk 0:02:39.8]} 15...
Be6 {[%clk 0:03:00.6]} 16. c4 {[%clk 0:02:30.6]} 16... dxc4 {[%clk 0:02:43.1]}
17. Qa4 {[%clk 0:02:30.7]} 17... Qe8 {[%clk 0:02:21.2]} 18. Ng5 {[%clk
0:01:41.9]} 18... Nd4 {[%clk 0:02:12.4]} 19. Qxe8 {[%clk 0:01:37.4]} 19... Nxe2+
{[%clk 0:02:11.8]} 20. Kf1 {[%clk 0:01:37.8]} 20... Ng3+ {[%clk 0:02:10]} 21.
fxg3 {[%clk 0:01:38]} 21... Rfxe8 {[%clk 0:02:10.4]} 22. Rac1 {[%clk 0:01:33.5]}
22... b5 {[%clk 0:02:05]} 23. Ne4 {[%clk 0:01:33]} 23... Rec8 {[%clk 0:02:02.4]}
24. Nd6 {[%clk 0:01:27.4]} 24... Rc6 {[%clk 0:01:57.7]} 25. Rd2 {[%clk
0:01:19.8]} 25... Rd8 {[%clk 0:01:49.9]} 26. Rcd1 {[%clk 0:01:19.5]} 26... Rb8
{[%clk 0:01:45.8]} 27. Kf2 {[%clk 0:01:15.9]} 27... Kf8 {[%clk 0:01:38.9]} 28.
g4 {[%clk 0:01:14.9]} 28... h6 {[%clk 0:01:33.7]} 29. Kg3 {[%clk 0:01:07.1]}
29... a5 {[%clk 0:01:29.3]} 30. Ne4 {[%clk 0:01:03.8]} 30... Ke7 {[%clk
0:01:25.5]} 31. g5 {[%clk 0:00:49]} 31... hxg5 {[%clk 0:01:24.3]} 32. Nxg5
{[%clk 0:00:48.9]} 32... Rb7 {[%clk 0:01:19.7]} 33. Rd8 {[%clk 0:00:46.7]} 33...
b4 {[%clk 0:01:15.2]} 34. Ra8 {[%clk 0:00:46.7]} 34... c3 {[%clk 0:01:11.8]} 35.
bxc3 {[%clk 0:00:46.7]} 35... Bxa2 {[%clk 0:01:11.6]} 36. Rxa5 {[%clk
0:00:44.1]} 36... b3 {[%clk 0:01:09.6]} 37. Nf3 {[%clk 0:00:23.9]} 37... b2
{[%clk 0:01:07.3]} 38. Ne5 {[%clk 0:00:18.5]} 38... Re6 {[%clk 0:01:01.4]} 39.
Rxa2 {[%clk 0:00:18.6]} 39... Rxe5 {[%clk 0:00:46.8]} 40. Rb1 {[%clk 0:00:18.8]}
40... Rxe3+ {[%clk 0:00:46.8]} 41. Kf4 {[%clk 0:00:17.1]} 41... Rxc3 {[%clk
0:00:46.2]} 42. Rbxb2 {[%clk 0:00:16.9]} 42... Rb4+ {[%clk 0:00:44.7]} 43. Rxb4
{[%clk 0:00:10.2]} 43... cxb4 {[%clk 0:00:44.9]} 44. Ra7+ {[%clk 0:00:11.1]}
44... Ke6 {[%clk 0:00:44]} 45. Rb7 {[%clk 0:00:11.7]} 45... b3 {[%clk
0:00:43.1]} 46. h4 {[%clk 0:00:06.5]} 46... f6 {[%clk 0:00:42.5]} 47. g4 {[%clk
0:00:06.4]} 47... Rc4+ {[%clk 0:00:41.2]} 48. Kf3 {[%clk 0:00:06.3]} 48... Rc3+
{[%clk 0:00:39.6]} 49. Kf4 {[%clk 0:00:06.8]} 49... Kd5 {[%clk 0:00:37.6]} 50.
h5 {[%clk 0:00:07.2]} 50... gxh5 {[%clk 0:00:37.1]} 51. gxh5 {[%clk 0:00:08.1]}
51... Rh3 {[%clk 0:00:32.7]} 52. Kg4 {[%clk 0:00:08.5]} 52... Re3 {[%clk
0:00:24.7]} 53. h6 {[%clk 0:00:05.9]} 53... Kc4 {[%clk 0:00:23.4]} 54. h7 {[%clk
0:00:04.9]} 54... Re8 {[%clk 0:00:22.8]} 55. Kf5 {[%clk 0:00:05]} 55... Rf8
{[%clk 0:00:19.7]} 56. Kg6 {[%clk 0:00:01.5]} 56... f5 {[%clk 0:00:20.2]} 57.
Kg7 {[%clk 0:00:01.3]} 57... Re8 {[%clk 0:00:20.4]} 0-1

[Event "Early-Titled-Tuesday-Blitz-February-27-2024"]
[Site "Chess.com"]
[Date "2024.02.27"]
[Round "6"]
[White "martinmena"]
[Black "picturesquecheck"]
[Result "1-0"]
[WhiteElo "2257"]
[BlackElo "2469"]
[TimeControl "180+1"]
[EndTime "9:05:36 PST"]
[Termination "martinmena won by checkmate"]

1. c4 {[%clk 0:03:00.9]} 1... Nf6 {[%clk 0:02:56.8]} 2. g3 {[%clk 0:02:57.5]}
2... g6 {[%clk 0:02:56.8]} 3. Bg2 {[%clk 0:02:56.5]} 3... Bg7 {[%clk 0:02:57.7]}
4. Nc3 {[%clk 0:02:56.6]} 4... O-O {[%clk 0:02:58.3]} 5. d3 {[%clk 0:02:57.2]}
5... d6 {[%clk 0:02:59.1]} 6. Bg5 {[%clk 0:02:57.2]} 6... Nc6 {[%clk 0:02:58.9]}
7. Qd2 {[%clk 0:02:57.2]} 7... e5 {[%clk 0:02:58.3]} 8. e4 {[%clk 0:02:55.3]}
8... a5 {[%clk 0:02:49.6]} 9. Nge2 {[%clk 0:02:54.3]} 9... Qe8 {[%clk
0:02:43.4]} 10. Bh6 {[%clk 0:02:49.6]} 10... Bg4 {[%clk 0:02:40.4]} 11. Bxg7
{[%clk 0:02:46.4]} 11... Kxg7 {[%clk 0:02:39.3]} 12. f3 {[%clk 0:02:44.8]} 12...
Be6 {[%clk 0:02:38.8]} 13. O-O {[%clk 0:02:42.3]} 13... Qd7 {[%clk 0:02:38.2]}
14. f4 {[%clk 0:02:29.8]} 14... Bg4 {[%clk 0:02:36]} 15. fxe5 {[%clk 0:02:19.7]}
15... dxe5 {[%clk 0:02:35.8]} 16. Qg5 {[%clk 0:02:10.6]} 16... Ng8 {[%clk
0:02:24.9]} 17. Qe3 {[%clk 0:02:01.1]} 17... Bxe2 {[%clk 0:02:24]} 18. Qxe2
{[%clk 0:02:00.1]} 18... Rad8 {[%clk 0:02:22.4]} 19. Nd5 {[%clk 0:02:00.2]}
19... f6 {[%clk 0:02:19.5]} 20. Qd2 {[%clk 0:01:52.5]} 20... b6 {[%clk
0:02:07.3]} 21. Rf2 {[%clk 0:01:48.1]} 21... Nd4 {[%clk 0:01:59.9]} 22. Raf1
{[%clk 0:01:45.8]} 22... Rf7 {[%clk 0:01:51.5]} 23. h4 {[%clk 0:01:45.6]} 23...
Rdf8 {[%clk 0:01:32.8]} 24. Kh2 {[%clk 0:01:45.2]} 24... Nh6 {[%clk 0:01:25.1]}
25. Ne3 {[%clk 0:01:25.5]} 25... Qd6 {[%clk 0:01:01.9]} 26. Bh3 {[%clk
0:01:24.1]} 26... c6 {[%clk 0:00:52.8]} 27. g4 {[%clk 0:01:22]} 27... Ng8 {[%clk
0:00:49.3]} 28. h5 {[%clk 0:01:14.7]} 28... a4 {[%clk 0:00:46.9]} 29. Kh1 {[%clk
0:00:45.8]} 29... Ne7 {[%clk 0:00:38.1]} 30. h6+ {[%clk 0:00:41]} 30... Kg8
{[%clk 0:00:38.4]} 31. Ng2 {[%clk 0:00:19.1]} 31... g5 {[%clk 0:00:38.6]} 32.
Ne3 {[%clk 0:00:17.9]} 32... Ng6 {[%clk 0:00:37.9]} 33. Nf5 {[%clk 0:00:14.4]}
33... Nxf5 {[%clk 0:00:38.2]} 34. Rxf5 {[%clk 0:00:13.1]} 34... Nf4 {[%clk
0:00:38.4]} 35. Bg2 {[%clk 0:00:12.2]} 35... Qxd3 {[%clk 0:00:36.6]} 36. Qxd3
{[%clk 0:00:12.3]} 36... Nxd3 {[%clk 0:00:37.2]} 37. b3 {[%clk 0:00:10.5]} 37...
axb3 {[%clk 0:00:36.9]} 38. axb3 {[%clk 0:00:11.3]} 38... c5 {[%clk 0:00:37.5]}
39. R5f3 {[%clk 0:00:10.7]} 39... Nf4 {[%clk 0:00:37.8]} 40. Rd1 {[%clk
0:00:10.9]} 40... Re7 {[%clk 0:00:37.3]} 41. Rd6 {[%clk 0:00:10.5]} 41... Re6
{[%clk 0:00:35.5]} 42. Rd7 {[%clk 0:00:07.6]} 42... Rf7 {[%clk 0:00:34.1]} 43.
Rd8+ {[%clk 0:00:07.1]} 43... Rf8 {[%clk 0:00:34.4]} 44. Rd7 {[%clk 0:00:07.6]}
44... Ng6 {[%clk 0:00:34.7]} 45. Rfd3 {[%clk 0:00:06.1]} 45... Re7 {[%clk
0:00:34.3]} 46. R7d6 {[%clk 0:00:05.1]} 46... Nf4 {[%clk 0:00:32.4]} 47. Rd2
{[%clk 0:00:04.4]} 47... Kf7 {[%clk 0:00:32.7]} 48. Rxb6 {[%clk 0:00:03.8]}
48... Kg6 {[%clk 0:00:33.3]} 49. Rdd6 {[%clk 0:00:04]} 49... Rff7 {[%clk
0:00:28.1]} 50. Rbc6 {[%clk 0:00:03.7]} 50... Rb7 {[%clk 0:00:26.9]} 51. Rb6
{[%clk 0:00:04.1]} 51... Rxb6 {[%clk 0:00:27]} 52. Rxb6 {[%clk 0:00:05]} 52...
Kxh6 {[%clk 0:00:27.5]} 53. Rb5 {[%clk 0:00:05.6]} 53... Nd3 {[%clk 0:00:26.2]}
54. Bf1 {[%clk 0:00:04.3]} 54... Nf2+ {[%clk 0:00:26.5]} 55. Kg2 {[%clk
0:00:04]} 55... Nxe4 {[%clk 0:00:27.4]} 56. Bd3 {[%clk 0:00:03.1]} 56... Nd6
{[%clk 0:00:22.4]} 57. Rxc5 {[%clk 0:00:03.6]} 57... e4 {[%clk 0:00:23.3]} 58.
Be2 {[%clk 0:00:03.9]} 58... Rb7 {[%clk 0:00:23.4]} 59. b4 {[%clk 0:00:03.3]}
59... Rxb4 {[%clk 0:00:23.1]} 60. Rc6 {[%clk 0:00:04.2]} 60... Rb2 {[%clk
0:00:23.2]} 61. Kf2 {[%clk 0:00:03.1]} 61... Ne8 {[%clk 0:00:20.4]} 62. Re6
{[%clk 0:00:03.5]} 62... Ng7 {[%clk 0:00:19.5]} 63. Rxf6# {[%clk 0:00:04]} 1-0